[Event "Titled Tuesday Blitz January 17 Early 2023"]
[White "Jaskolka, Tomasz"]
[Black "Tarlabasi, Emirhan"]
[WhiteFideId "1170791"]
[BlackFideId "6350275"]
[WhiteElo "2238"]
[BlackElo "2300"]
[Result "1/2-1/2"]
[Round "03"]
[TimeControl "180+2"]
[Date "2023.01.17"]
[WhiteClock "0:00:04"]
[BlackClock "0:00:05"]

1. d4 {[%clk 0:03:00]}  d5 {[%clk 0:02:58]} 2. c4 {[%clk 0:03:00]}  e6 {[%clk 0:02:59]} 3. g3 {[%clk 0:02:59]}  Nf6 {[%clk 0:02:59]} 4. Bg2 {[%clk 0:03:00]}  Be7 {[%clk 0:02:56]} 5. Nf3 {[%clk 0:03:00]}  O-O {[%clk 0:02:56]} 6. O-O {[%clk 0:03:00]}  dxc4 {[%clk 0:02:57]} 7. Qc2 {[%clk 0:02:59]}  a6 {[%clk 0:02:57]} 8. a4 {[%clk 0:03:00]}  Bd7 {[%clk 0:02:58]} 9. Qxc4 {[%clk 0:02:58]}  Bc6 {[%clk 0:02:58]} 10. Bg5 {[%clk 0:02:57]}  Bd5 {[%clk 0:02:59]} 11. Qc2 {[%clk 0:02:57]}  Be4 {[%clk 0:02:59]} 12. Qc1 {[%clk 0:02:58]}  Nc6 {[%clk 0:02:59]} 13. Rd1 {[%clk 0:02:51]}  Bxf3 {[%clk 0:02:40]} 14. Bxf3 {[%clk 0:02:51]}  Nxd4 {[%clk 0:02:41]} 15. Kg2 {[%clk 0:02:28]}  c5 {[%clk 0:02:17]} 16. e3 {[%clk 0:02:24]}  Nb3 {[%clk 0:02:16]} 17. Rxd8 {[%clk 0:01:15]}  Nxc1 {[%clk 0:02:16]} 18. Rxa8 {[%clk 0:01:15]}  Rxa8 {[%clk 0:02:16]} 19. Bxb7 {[%clk 0:01:15]}  Rb8 {[%clk 0:02:12]} 20. Bxa6 {[%clk 0:01:15]}  Rxb2 {[%clk 0:02:02]} 21. Na3 {[%clk 0:01:11]}  Nb3 {[%clk 0:01:49]} 22. Rb1 {[%clk 0:01:07]}  Rxb1 {[%clk 0:01:40]} 23. Nxb1 {[%clk 0:01:08]}  h6 {[%clk 0:01:36]} 24. Bf4 {[%clk 0:01:00]}  Nd5 {[%clk 0:01:21]} 25. Be5 {[%clk 0:01:00]}  Nb6 {[%clk 0:01:11]} 26. Nc3 {[%clk 0:00:58]}  Bf6 {[%clk 0:00:56]} 27. Bxf6 {[%clk 0:00:58]}  gxf6 {[%clk 0:00:57]} 28. Kf3 {[%clk 0:00:46]}  f5 {[%clk 0:00:54]} 29. Ke2 {[%clk 0:00:45]}  e5 {[%clk 0:00:48]} 30. Bb5 {[%clk 0:00:44]}  Kg7 {[%clk 0:00:45]} 31. f4 {[%clk 0:00:38]}  e4 {[%clk 0:00:43]} 32. h3 {[%clk 0:00:38]}  h5 {[%clk 0:00:43]} 33. Kd1 {[%clk 0:00:31]}  Na5 {[%clk 0:00:41]} 34. Kc2 {[%clk 0:00:30]}  Kf8 {[%clk 0:00:35]} 35. Be2 {[%clk 0:00:30]}  Ke7 {[%clk 0:00:29]} 36. Bxh5 {[%clk 0:00:31]}  Nac4 {[%clk 0:00:29]} 37. Be2 {[%clk 0:00:21]}  Nxe3+ {[%clk 0:00:29]} 38. Kb3 {[%clk 0:00:21]}  Kd6 {[%clk 0:00:18]} 39. a5 {[%clk 0:00:22]}  Nc8 {[%clk 0:00:09]} 40. a6 {[%clk 0:00:17]}  Kc6 {[%clk 0:00:08]} 41. h4 {[%clk 0:00:11]}  Kb6 {[%clk 0:00:09]} 42. h5 {[%clk 0:00:12]}  Nd6 {[%clk 0:00:08]} 43. h6 {[%clk 0:00:11]}  f6 {[%clk 0:00:09]} 44. Bh5 {[%clk 0:00:05]}  c4+ {[%clk 0:00:09]} 45. Ka2 {[%clk 0:00:03]}  Nc2 {[%clk 0:00:07]} 46. h7 {[%clk 0:00:03]}  Nb4+ {[%clk 0:00:08]} 47. Kb2 {[%clk 0:00:02]}  Nd3+ {[%clk 0:00:08]} 48. Ka3 {[%clk 0:00:02]}  e3 {[%clk 0:00:08]} 49. h8=Q {[%clk 0:00:03]}  e2 {[%clk 0:00:08]} 50. Bxe2 {[%clk 0:00:03]}  Kc5 {[%clk 0:00:08]} 51. Qxf6 {[%clk 0:00:03]}  Ne4 {[%clk 0:00:07]} 52. Qe5+ {[%clk 0:00:03]}  Nxe5 {[%clk 0:00:07]} 53. fxe5 {[%clk 0:00:03]}  Nxc3 {[%clk 0:00:07]} 54. a7 {[%clk 0:00:03]}  Nb5+ {[%clk 0:00:07]} 55. Kb2 {[%clk 0:00:03]}  Nxa7 {[%clk 0:00:08]} 56. Kc3 {[%clk 0:00:03]}  Nc6 {[%clk 0:00:09]} 57. Bxc4 {[%clk 0:00:03]}  Nxe5 {[%clk 0:00:09]} 58. Be6 {[%clk 0:00:03]}  Kd6 {[%clk 0:00:05]} 59. Bxf5 {[%clk 0:00:04]}  Ke7 {[%clk 0:00:06]} 60. Kd4 {[%clk 0:00:04]}  Kf6 {[%clk 0:00:07]} 61. Ke4 {[%clk 0:00:04]}  Nf7 {[%clk 0:00:06]} 62. Kf4 {[%clk 0:00:05]}  Nd6 {[%clk 0:00:07]} 63. Bd3 {[%clk 0:00:03]}  Nf7 {[%clk 0:00:07]} 64. g4 {[%clk 0:00:04]}  Ng5 {[%clk 0:00:07]} 65. Bc4 {[%clk 0:00:04]}  Nh3+ {[%clk 0:00:07]} 66. Kf3 {[%clk 0:00:04]}  Ng5+ {[%clk 0:00:08]} 67. Kg3 {[%clk 0:00:04]}  Ne4+ {[%clk 0:00:08]} 68. Kf4 {[%clk 0:00:05]}  Ng5 {[%clk 0:00:07]} 69. Bf1 {[%clk 0:00:05]}  Ne6+ {[%clk 0:00:07]} 70. Kg3 {[%clk 0:00:05]}  Kg5 {[%clk 0:00:08]} 71. Bc4 {[%clk 0:00:04]}  Nf4 {[%clk 0:00:08]} 72. Kf3 {[%clk 0:00:02]}  Ng6 {[%clk 0:00:09]} 73. Kg3 {[%clk 0:00:03]}  Ne5 {[%clk 0:00:09]} 74. Be6 {[%clk 0:00:03]}  Nd3 {[%clk 0:00:09]} 75. Kh3 {[%clk 0:00:02]}  Nc5 {[%clk 0:00:09]} 76. Kg3 {[%clk 0:00:03]}  Nxe6 {[%clk 0:00:10]} 77. Kh3 {[%clk 0:00:04]}  Nd4 {[%clk 0:00:10]} 78. Kg3 {[%clk 0:00:05]}  Ne6 {[%clk 0:00:11]} 79. Kh3 {[%clk 0:00:06]}  Kf4 {[%clk 0:00:11]} 80. Kh4 {[%clk 0:00:06]}  Ng5 {[%clk 0:00:12]} 81. Kh5 {[%clk 0:00:07]}  Ne4 {[%clk 0:00:11]} 82. Kh4 {[%clk 0:00:07]}  Nd6 {[%clk 0:00:10]} 83. g5 {[%clk 0:00:07]}  Ne8 {[%clk 0:00:10]} 84. Kh5 {[%clk 0:00:07]}  Kf5 {[%clk 0:00:09]} 85. Kh6 {[%clk 0:00:07]}  Nd6 {[%clk 0:00:07]} 86. g6 {[%clk 0:00:07]}  Ne4 {[%clk 0:00:03]} 87. Kg7 {[%clk 0:00:05]}  Nf6 {[%clk 0:00:04]} 88. Kf7 {[%clk 0:00:06]}  Nh5 {[%clk 0:00:04]} 89. Ke7 {[%clk 0:00:04]}  Kxg6 {[%clk 0:00:05]} 1/2-1/2


[Site "https://www.chess.com"]

[Event "Titled Tuesday Blitz January 17 Early 2023"]
[White "Tasev, Dejan"]
[Black "Bruned, Yvain"]
[WhiteFideId "936618"]
[BlackFideId "2250292"]
[WhiteElo "2205"]
[BlackElo "2286"]
[Result "0-1"]
[Round "03"]
[TimeControl "180+2"]
[Date "2023.01.17"]
[WhiteClock "0:00:02"]
[BlackClock "0:00:36"]

1. e4 {[%clk 0:03:00]}  b6 {[%clk 0:03:00]} 2. d4 {[%clk 0:02:59]}  Bb7 {[%clk 0:03:00]} 3. Nc3 {[%clk 0:03:00]}  e6 {[%clk 0:03:00]} 4. Nf3 {[%clk 0:03:00]}  Bb4 {[%clk 0:03:01]} 5. Bd3 {[%clk 0:02:59]}  Nf6 {[%clk 0:03:02]} 6. Qe2 {[%clk 0:02:58]}  d5 {[%clk 0:03:01]} 7. e5 {[%clk 0:02:57]}  Ne4 {[%clk 0:03:01]} 8. Bd2 {[%clk 0:02:57]}  Nxd2 {[%clk 0:03:00]} 9. Qxd2 {[%clk 0:02:55]}  Be7 {[%clk 0:03:01]} 10. Ne2 {[%clk 0:02:53]}  c5 {[%clk 0:03:02]} 11. c3 {[%clk 0:02:53]}  Ba6 {[%clk 0:02:56]} 12. O-O {[%clk 0:02:51]}  O-O {[%clk 0:02:53]} 13. Ng3 {[%clk 0:02:48]}  Bxd3 {[%clk 0:02:49]} 14. Qxd3 {[%clk 0:02:48]}  Nc6 {[%clk 0:02:50]} 15. h3 {[%clk 0:02:44]}  Rc8 {[%clk 0:02:46]} 16. a3 {[%clk 0:02:39]}  cxd4 {[%clk 0:02:42]} 17. cxd4 {[%clk 0:02:39]}  Na5 {[%clk 0:02:39]} 18. Rac1 {[%clk 0:02:33]}  Qd7 {[%clk 0:02:34]} 19. Nh2 {[%clk 0:02:18]}  Rxc1 {[%clk 0:02:32]} 20. Rxc1 {[%clk 0:02:17]}  Rc8 {[%clk 0:02:30]} 21. Rc3 {[%clk 0:02:11]}  Rxc3 {[%clk 0:02:28]} 22. Qxc3 {[%clk 0:02:10]}  Qc6 {[%clk 0:02:26]} 23. Qxc6 {[%clk 0:02:05]}  Nxc6 {[%clk 0:02:27]} 24. Ne2 {[%clk 0:02:02]}  Na5 {[%clk 0:02:23]} 25. Nc1 {[%clk 0:01:57]}  Nc4 {[%clk 0:02:01]} 26. Nd3 {[%clk 0:01:55]}  h5 {[%clk 0:01:56]} 27. Nf3 {[%clk 0:01:52]}  g6 {[%clk 0:01:55]} 28. Kf1 {[%clk 0:01:50]}  Kf8 {[%clk 0:01:55]} 29. a4 {[%clk 0:01:43]}  a6 {[%clk 0:01:46]} 30. Ke2 {[%clk 0:01:42]}  Ke8 {[%clk 0:01:43]} 31. Kd1 {[%clk 0:01:40]}  Kd7 {[%clk 0:01:43]} 32. Kc2 {[%clk 0:01:39]}  b5 {[%clk 0:01:43]} 33. axb5 {[%clk 0:01:38]}  axb5 {[%clk 0:01:44]} 34. b3 {[%clk 0:01:38]}  Na5 {[%clk 0:01:40]} 35. b4 {[%clk 0:01:33]}  Nc6 {[%clk 0:01:39]} 36. Kc3 {[%clk 0:01:33]}  Ke8 {[%clk 0:01:36]} 37. Nc5 {[%clk 0:01:30]}  Kf8 {[%clk 0:01:25]} 38. Ne1 {[%clk 0:01:21]}  Bh4 {[%clk 0:01:21]} 39. g3 {[%clk 0:01:15]}  Be7 {[%clk 0:01:20]} 40. Nc2 {[%clk 0:01:13]}  Ke8 {[%clk 0:01:10]} 41. Na3 {[%clk 0:01:12]}  Na7 {[%clk 0:01:10]} 42. f3 {[%clk 0:01:06]}  Kd8 {[%clk 0:01:10]} 43. g4 {[%clk 0:01:04]}  hxg4 {[%clk 0:01:09]} 44. fxg4 {[%clk 0:01:03]}  Bh4 {[%clk 0:01:09]} 45. Nb7+ {[%clk 0:01:00]}  Ke7 {[%clk 0:01:06]} 46. Nd6 {[%clk 0:00:34]}  Be1+ {[%clk 0:01:04]} 47. Kb3 {[%clk 0:00:32]}  Nc6 {[%clk 0:01:03]} 48. Naxb5 {[%clk 0:00:31]}  Bxb4 {[%clk 0:01:01]} 49. Nc8+ {[%clk 0:00:27]}  Kf8 {[%clk 0:00:59]} 50. Nb6 {[%clk 0:00:27]}  Be1 {[%clk 0:00:56]} 51. Kc2 {[%clk 0:00:25]}  Ba5 {[%clk 0:00:51]} 52. Nd7+ {[%clk 0:00:23]}  Kg7 {[%clk 0:00:50]} 53. Nf6 {[%clk 0:00:22]}  Bd8 {[%clk 0:00:47]} 54. g5 {[%clk 0:00:20]}  Ba5 {[%clk 0:00:45]} 55. Kd3 {[%clk 0:00:18]}  Be1 {[%clk 0:00:45]} 56. Ke3 {[%clk 0:00:15]}  Bh4 {[%clk 0:00:43]} 57. Kf4 {[%clk 0:00:15]}  Bf2 {[%clk 0:00:43]} 58. Nd6 {[%clk 0:00:11]}  Bxd4 {[%clk 0:00:40]} 59. Nfe8+ {[%clk 0:00:09]}  Kf8 {[%clk 0:00:40]} 60. Nxf7 {[%clk 0:00:02]}  Kxf7 {[%clk 0:00:38]} 61. Nd6+ {[%clk 0:00:03]}  Ke7 {[%clk 0:00:37]} 62. Nc8+ {[%clk 0:00:02]}  Kd7 {[%clk 0:00:36]} 0-1


[Site "https://www.chess.com"]

[Event "Titled Tuesday Blitz January 17 Early 2023"]
[White "Maksimenko, Viktor"]
[Black "Mamedov, Edgar"]
[WhiteFideId "13710478"]
[BlackFideId "13739980"]
[WhiteElo "2196"]
[BlackElo "2193"]
[Result "1/2-1/2"]
[Round "03"]
[TimeControl "180+2"]
[Date "2023.01.17"]
[WhiteClock "0:00:06"]
[BlackClock "0:00:04"]

1. c4 {[%clk 0:03:00]}  c6 {[%clk 0:02:58]} 2. e4 {[%clk 0:03:01]}  d5 {[%clk 0:02:58]} 3. exd5 {[%clk 0:02:57]}  cxd5 {[%clk 0:02:58]} 4. d4 {[%clk 0:02:58]}  Nf6 {[%clk 0:02:58]} 5. Nc3 {[%clk 0:02:58]}  Nc6 {[%clk 0:02:58]} 6. Nf3 {[%clk 0:02:54]}  Be6 {[%clk 0:02:57]} 7. c5 {[%clk 0:02:47]}  g6 {[%clk 0:02:56]} 8. Bb5 {[%clk 0:02:46]}  Bg7 {[%clk 0:02:54]} 9. Ne5 {[%clk 0:02:42]}  Bd7 {[%clk 0:02:54]} 10. Nxd7 {[%clk 0:02:39]}  Nxd7 {[%clk 0:02:49]} 11. Be3 {[%clk 0:02:16]}  e6 {[%clk 0:02:43]} 12. O-O {[%clk 0:02:15]}  O-O {[%clk 0:02:42]} 13. a3 {[%clk 0:02:13]}  a6 {[%clk 0:02:30]} 14. Be2 {[%clk 0:02:09]}  Qf6 {[%clk 0:02:25]} 15. Qa4 {[%clk 0:01:43]}  Nxc5 {[%clk 0:01:42]} 16. dxc5 {[%clk 0:01:33]}  d4 {[%clk 0:01:42]} 17. Bd2 {[%clk 0:01:18]}  dxc3 {[%clk 0:01:39]} 18. Bxc3 {[%clk 0:01:19]}  Nd4 {[%clk 0:01:26]} 19. Bc4 {[%clk 0:01:15]}  Qg5 {[%clk 0:01:12]} 20. Bxd4 {[%clk 0:00:34]}  Bxd4 {[%clk 0:01:11]} 21. Bxe6 {[%clk 0:00:33]}  Qxc5 {[%clk 0:01:03]} 22. Rac1 {[%clk 0:00:24]}  Qe5 {[%clk 0:00:56]} 23. Ba2 {[%clk 0:00:21]}  Bxb2 {[%clk 0:00:53]} 24. Rc2 {[%clk 0:00:13]}  Bd4 {[%clk 0:00:38]} 25. Qb3 {[%clk 0:00:12]}  b6 {[%clk 0:00:27]} 26. g3 {[%clk 0:00:11]}  Bc5 {[%clk 0:00:26]} 27. Qf3 {[%clk 0:00:10]}  Kg7 {[%clk 0:00:23]} 28. Kg2 {[%clk 0:00:08]}  Ra7 {[%clk 0:00:21]} 29. h4 {[%clk 0:00:08]}  h5 {[%clk 0:00:19]} 30. Rc4 {[%clk 0:00:08]}  Re7 {[%clk 0:00:19]} 31. Rf4 {[%clk 0:00:07]}  Qb2 {[%clk 0:00:15]} 32. Bc4 {[%clk 0:00:03]}  Qxa3 {[%clk 0:00:14]} 33. Qxa3 {[%clk 0:00:03]}  Bxa3 {[%clk 0:00:13]} 34. Bxa6 {[%clk 0:00:04]}  Bc5 {[%clk 0:00:13]} 35. Bc4 {[%clk 0:00:03]}  Rd8 {[%clk 0:00:11]} 36. Ra1 {[%clk 0:00:02]}  Rd4 {[%clk 0:00:10]} 37. Rxd4 {[%clk 0:00:01]}  Bxd4 {[%clk 0:00:11]} 38. Ra2 {[%clk 0:00:02]}  Bc5 {[%clk 0:00:11]} 39. Bb5 {[%clk 0:00:02]}  Re4 {[%clk 0:00:10]} 40. Bc6 {[%clk 0:00:03]}  Re6 {[%clk 0:00:09]} 41. Bd5 {[%clk 0:00:03]}  Rd6 {[%clk 0:00:09]} 42. Bc4 {[%clk 0:00:04]}  Rd7 {[%clk 0:00:07]} 43. Rc2 {[%clk 0:00:03]}  Rc7 {[%clk 0:00:07]} 44. Re2 {[%clk 0:00:04]}  Bxf2 {[%clk 0:00:05]} 45. Bd5 {[%clk 0:00:04]}  Bc5 {[%clk 0:00:05]} 46. Bb3 {[%clk 0:00:05]}  Rd7 {[%clk 0:00:05]} 47. Bc4 {[%clk 0:00:04]}  Rd4 {[%clk 0:00:05]} 48. Bb5 {[%clk 0:00:04]}  Rb4 {[%clk 0:00:05]} 49. Bc6 {[%clk 0:00:05]}  Bd6 {[%clk 0:00:04]} 50. Rd2 {[%clk 0:00:04]}  Be5 {[%clk 0:00:03]} 51. Rd7 {[%clk 0:00:05]}  Rb3 {[%clk 0:00:03]} 52. Rxf7+ {[%clk 0:00:05]}  Kxf7 {[%clk 0:00:03]} 53. Bd5+ {[%clk 0:00:06]}  Ke7 {[%clk 0:00:04]} 54. Bxb3 {[%clk 0:00:06]}  Kd6 {[%clk 0:00:05]} 55. Bf7 {[%clk 0:00:05]}  g5 {[%clk 0:00:02]} 56. hxg5 {[%clk 0:00:04]}  Ke7 {[%clk 0:00:02]} 57. Bxh5 {[%clk 0:00:05]}  Kf8 {[%clk 0:00:03]} 58. Be2 {[%clk 0:00:05]}  Kg7 {[%clk 0:00:03]} 59. Bb5 {[%clk 0:00:06]}  Bd6 {[%clk 0:00:04]} 60. Kf3 {[%clk 0:00:06]}  Be7 {[%clk 0:00:04]} 61. Kf4 {[%clk 0:00:06]}  Bd6+ {[%clk 0:00:04]} 1/2-1/2


[Site "https://www.chess.com"]

[Event "Titled Tuesday Blitz January 17 Early 2023"]
[White "Ismagilov, Damir"]
[Black "Horcajuelo Rocamora, Martin"]
[WhiteFideId "34199982"]
[BlackFideId "24573027"]
[WhiteElo "2156"]
[BlackElo "2107"]
[Result "0-1"]
[Round "03"]
[TimeControl "180+2"]
[Date "2023.01.17"]
[WhiteClock "0:01:23"]
[BlackClock "0:01:18"]

1. e4 {[%clk 0:02:56]}  c5 {[%clk 0:02:57]} 2. Nf3 {[%clk 0:02:55]}  e6 {[%clk 0:02:57]} 3. g3 {[%clk 0:02:55]}  Nc6 {[%clk 0:02:51]} 4. Bg2 {[%clk 0:02:54]}  g6 {[%clk 0:02:50]} 5. d4 {[%clk 0:02:53]}  cxd4 {[%clk 0:02:50]} 6. Nxd4 {[%clk 0:02:53]}  Bg7 {[%clk 0:02:44]} 7. Be3 {[%clk 0:02:31]}  a6 {[%clk 0:02:34]} 8. O-O {[%clk 0:02:27]}  Nge7 {[%clk 0:02:33]} 9. Nc3 {[%clk 0:02:18]}  O-O {[%clk 0:02:27]} 10. Kh1 {[%clk 0:02:18]}  b5 {[%clk 0:02:09]} 11. f4 {[%clk 0:02:11]}  Bb7 {[%clk 0:02:07]} 12. e5 {[%clk 0:02:11]}  Na5 {[%clk 0:01:55]} 13. Ne4 {[%clk 0:02:07]}  Nc4 {[%clk 0:01:46]} 14. Bf2 {[%clk 0:01:49]}  Nxb2 {[%clk 0:01:42]} 15. Qc1 {[%clk 0:01:43]}  Nc4 {[%clk 0:01:41]} 16. Nf6+ {[%clk 0:01:42]}  Bxf6 {[%clk 0:01:38]} 17. Bxb7 {[%clk 0:01:42]}  Bg7 {[%clk 0:01:37]} 18. Bxa8 {[%clk 0:01:39]}  Qxa8+ {[%clk 0:01:38]} 19. Kg1 {[%clk 0:01:39]}  Rc8 {[%clk 0:01:34]} 20. Qd1 {[%clk 0:01:33]}  Nd5 {[%clk 0:01:29]} 21. Qf3 {[%clk 0:01:30]}  Nd2 {[%clk 0:01:19]} 22. Qe4 {[%clk 0:01:23]}  Nxe4 {[%clk 0:01:18]} 0-1


[Site "https://www.chess.com"]

[Event "Titled Tuesday Blitz January 17 Early 2023"]
[White "Djokovic, Nebojsa"]
[Black "Dudzinski, Pawel"]
[WhiteFideId "938300"]
[BlackFideId "1117890"]
[WhiteElo "2119"]
[BlackElo "2186"]
[Result "1/2-1/2"]
[Round "03"]
[TimeControl "180+2"]
[Date "2023.01.17"]
[WhiteClock "0:00:15"]
[BlackClock "0:00:10"]

1. c4 {[%clk 0:03:00]}  e5 {[%clk 0:02:29]} 2. Nc3 {[%clk 0:02:59]}  c5 {[%clk 0:02:29]} 3. g3 {[%clk 0:02:57]}  Nc6 {[%clk 0:02:30]} 4. Bg2 {[%clk 0:02:58]}  g6 {[%clk 0:02:31]} 5. d3 {[%clk 0:02:55]}  Bg7 {[%clk 0:02:32]} 6. Nf3 {[%clk 0:02:55]}  Rb8 {[%clk 0:02:32]} 7. O-O {[%clk 0:02:55]}  Nge7 {[%clk 0:02:33]} 8. Rb1 {[%clk 0:02:44]}  a6 {[%clk 0:02:32]} 9. b3 {[%clk 0:02:40]}  b5 {[%clk 0:02:32]} 10. Bb2 {[%clk 0:02:40]}  O-O {[%clk 0:02:30]} 11. Qd2 {[%clk 0:02:40]}  d6 {[%clk 0:02:30]} 12. h4 {[%clk 0:02:35]}  b4 {[%clk 0:02:30]} 13. Nd1 {[%clk 0:02:29]}  h6 {[%clk 0:02:25]} 14. e3 {[%clk 0:02:29]}  f5 {[%clk 0:02:24]} 15. Ne1 {[%clk 0:02:21]}  Be6 {[%clk 0:02:22]} 16. d4 {[%clk 0:02:16]}  exd4 {[%clk 0:02:19]} 17. exd4 {[%clk 0:02:17]}  Nxd4 {[%clk 0:02:11]} 18. Nd3 {[%clk 0:02:17]}  Kh7 {[%clk 0:02:02]} 19. Nf4 {[%clk 0:02:16]}  Bf7 {[%clk 0:02:02]} 20. Ne3 {[%clk 0:02:16]}  g5 {[%clk 0:01:55]} 21. Nfd5 {[%clk 0:02:15]}  Nxd5 {[%clk 0:01:55]} 22. Nxd5 {[%clk 0:02:14]}  f4 {[%clk 0:01:36]} 23. Be4+ {[%clk 0:02:10]}  Kh8 {[%clk 0:01:33]} 24. hxg5 {[%clk 0:02:03]}  Qxg5 {[%clk 0:01:26]} 25. Nxf4 {[%clk 0:01:43]}  Rbe8 {[%clk 0:01:23]} 26. Qd3 {[%clk 0:01:30]}  Bxc4 {[%clk 0:01:08]} 27. bxc4 {[%clk 0:00:58]}  Rxf4 {[%clk 0:01:07]} 28. Rbe1 {[%clk 0:00:56]}  Rexe4 {[%clk 0:00:11]} 29. Rxe4 {[%clk 0:00:54]}  Nf3+ {[%clk 0:00:11]} 30. Kg2 {[%clk 0:00:37]}  Nh4+ {[%clk 0:00:11]} 31. Kh2 {[%clk 0:00:21]}  Nf3+ {[%clk 0:00:10]} 32. Kg2 {[%clk 0:00:21]}  Nh4+ {[%clk 0:00:10]} 33. Kg1 {[%clk 0:00:15]}  Nf3+ {[%clk 0:00:10]} 34. Kg2 {[%clk 0:00:15]} 1/2-1/2


[Site "https://www.chess.com"]

[Event "Titled Tuesday Blitz January 17 Early 2023"]
[White "Jiang, Andrew"]
[Black "Ginzburg, Yakov"]
[WhiteFideId "30953510"]
[BlackFideId "4157176"]
[WhiteElo "2201"]
[BlackElo "2405"]
[Result "0-1"]
[Round "03"]
[TimeControl "180+2"]
[Date "2023.01.17"]
[WhiteClock "0:00:49"]
[BlackClock "0:00:09"]

1. e4 {[%clk 0:02:59]}  c5 {[%clk 0:02:59]} 2. g3 {[%clk 0:02:58]}  e6 {[%clk 0:02:59]} 3. Bg2 {[%clk 0:02:57]}  d5 {[%clk 0:02:59]} 4. exd5 {[%clk 0:02:57]}  exd5 {[%clk 0:02:59]} 5. d4 {[%clk 0:02:57]}  Nf6 {[%clk 0:02:59]} 6. Ne2 {[%clk 0:02:55]}  Be7 {[%clk 0:02:51]} 7. O-O {[%clk 0:02:55]}  O-O {[%clk 0:02:51]} 8. dxc5 {[%clk 0:02:54]}  Na6 {[%clk 0:02:50]} 9. Nbc3 {[%clk 0:02:53]}  Bg4 {[%clk 0:02:43]} 10. h3 {[%clk 0:02:48]}  Bxe2 {[%clk 0:02:39]} 11. Qxe2 {[%clk 0:02:48]}  Nxc5 {[%clk 0:02:36]} 12. Rd1 {[%clk 0:02:47]}  d4 {[%clk 0:02:25]} 13. Be3 {[%clk 0:02:44]}  Ne6 {[%clk 0:01:42]} 14. Nb5 {[%clk 0:02:39]}  dxe3 {[%clk 0:01:34]} 15. Rxd8 {[%clk 0:02:38]}  exf2+ {[%clk 0:01:34]} 16. Qxf2 {[%clk 0:02:33]}  Raxd8 {[%clk 0:01:30]} 17. Kh2 {[%clk 0:02:30]}  Bc5 {[%clk 0:01:19]} 18. Qf5 {[%clk 0:02:25]}  a6 {[%clk 0:01:16]} 19. Nc3 {[%clk 0:02:25]}  Rd2 {[%clk 0:01:09]} 20. Rd1 {[%clk 0:02:21]}  Rf2 {[%clk 0:01:03]} 21. Qe5 {[%clk 0:02:20]}  Rxc2 {[%clk 0:00:55]} 22. Nd5 {[%clk 0:02:00]}  Nxd5 {[%clk 0:00:50]} 23. Rxd5 {[%clk 0:02:00]}  Bb6 {[%clk 0:00:33]} 24. Rd7 {[%clk 0:01:54]}  Bc7 {[%clk 0:00:28]} 25. Qf5 {[%clk 0:01:54]}  Rxb2 {[%clk 0:00:26]} 26. h4 {[%clk 0:01:45]}  g6 {[%clk 0:00:26]} 27. Qf6 {[%clk 0:01:43]}  Rxa2 {[%clk 0:00:22]} 28. Kh3 {[%clk 0:01:41]}  Ra3 {[%clk 0:00:21]} 29. Rxc7 {[%clk 0:01:31]}  Nxc7 {[%clk 0:00:21]} 30. Qd6 {[%clk 0:01:30]}  Rc3 {[%clk 0:00:17]} 31. Bxb7 {[%clk 0:01:29]}  Rb8 {[%clk 0:00:16]} 32. Bxa6 {[%clk 0:01:23]}  Nxa6 {[%clk 0:00:16]} 33. Qxa6 {[%clk 0:01:22]}  Rbb3 {[%clk 0:00:15]} 34. Qa8+ {[%clk 0:01:20]}  Kg7 {[%clk 0:00:15]} 35. Qa1 {[%clk 0:01:19]}  h5 {[%clk 0:00:15]} 36. Kh2 {[%clk 0:01:18]}  Kh7 {[%clk 0:00:15]} 37. Qa7 {[%clk 0:01:15]}  Rf3 {[%clk 0:00:13]} 38. Qe7 {[%clk 0:01:13]}  Rb2+ {[%clk 0:00:12]} 39. Kg1 {[%clk 0:01:08]}  Rxg3+ {[%clk 0:00:12]} 40. Kf1 {[%clk 0:01:07]}  Rf3+ {[%clk 0:00:12]} 41. Ke1 {[%clk 0:01:07]}  Rf5 {[%clk 0:00:12]} 42. Kd1 {[%clk 0:01:06]}  Rbf2 {[%clk 0:00:12]} 43. Ke1 {[%clk 0:01:03]}  R2f4 {[%clk 0:00:12]} 44. Ke2 {[%clk 0:01:03]}  Rf6 {[%clk 0:00:13]} 45. Kd3 {[%clk 0:01:02]}  R4f5 {[%clk 0:00:13]} 46. Qd7 {[%clk 0:01:01]}  Kg7 {[%clk 0:00:13]} 47. Ke4 {[%clk 0:01:00]}  Rf4+ {[%clk 0:00:13]} 48. Ke3 {[%clk 0:01:00]}  Rxh4 {[%clk 0:00:13]} 49. Qd8 {[%clk 0:00:58]}  Rhf4 {[%clk 0:00:13]} 50. Qd7 {[%clk 0:00:57]}  h4 {[%clk 0:00:13]} 51. Qd1 {[%clk 0:00:55]}  h3 {[%clk 0:00:13]} 52. Qh1 {[%clk 0:00:54]}  Rf3+ {[%clk 0:00:13]} 53. Ke4 {[%clk 0:00:53]}  R6f4+ {[%clk 0:00:13]} 54. Kd5 {[%clk 0:00:52]}  g5 {[%clk 0:00:12]} 55. Qg1 {[%clk 0:00:51]}  Kg6 {[%clk 0:00:12]} 56. Qb1+ {[%clk 0:00:50]}  Rf5+ {[%clk 0:00:12]} 57. Ke4 {[%clk 0:00:50]}  h2 {[%clk 0:00:12]} 58. Qb6+ {[%clk 0:00:49]}  Rf6 {[%clk 0:00:11]} 59. Qb1 {[%clk 0:00:48]}  Rf1 {[%clk 0:00:11]} 60. Qd3 {[%clk 0:00:48]}  h1=Q+ {[%clk 0:00:10]} 61. Ke5+ {[%clk 0:00:48]}  R1f5+ {[%clk 0:00:09]} 62. Kd4 {[%clk 0:00:48]}  Rd6+ {[%clk 0:00:09]} 63. Kc4 {[%clk 0:00:49]}  Rxd3 {[%clk 0:00:09]} 64. Kxd3 {[%clk 0:00:49]}  Rf4 {[%clk 0:00:09]} 65. Ke3 {[%clk 0:00:49]}  Qh3+ {[%clk 0:00:09]} 66. Ke2 {[%clk 0:00:49]}  Rg4 {[%clk 0:00:09]} 0-1


[Site "https://www.chess.com"]

[Event "Titled Tuesday Blitz January 17 Early 2023"]
[White "Divya Deshmukh"]
[Black "Liu, Casper"]
[WhiteFideId "35006916"]
[BlackFideId "1454153"]
[WhiteElo "2372"]
[BlackElo "2278"]
[Result "1-0"]
[Round "03"]
[TimeControl "180+2"]
[Date "2023.01.17"]
[WhiteClock "0:01:53"]
[BlackClock "0:00:45"]

1. e4 {[%clk 0:03:00]}  e5 {[%clk 0:02:56]} 2. Nc3 {[%clk 0:03:00]}  Nc6 {[%clk 0:02:57]} 3. Bc4 {[%clk 0:03:00]}  a6 {[%clk 0:02:56]} 4. a4 {[%clk 0:02:59]}  Nf6 {[%clk 0:02:55]} 5. d3 {[%clk 0:02:59]}  Bc5 {[%clk 0:02:55]} 6. f4 {[%clk 0:02:59]}  exf4 {[%clk 0:02:52]} 7. Bxf4 {[%clk 0:03:00]}  O-O {[%clk 0:02:51]} 8. Qd2 {[%clk 0:02:57]}  d6 {[%clk 0:02:51]} 9. Bg5 {[%clk 0:02:56]}  Be6 {[%clk 0:02:38]} 10. O-O-O {[%clk 0:02:52]}  b5 {[%clk 0:02:35]} 11. Bd5 {[%clk 0:02:51]}  b4 {[%clk 0:02:25]} 12. Bxc6 {[%clk 0:02:48]}  bxc3 {[%clk 0:02:25]} 13. Qxc3 {[%clk 0:02:49]}  Nxe4 {[%clk 0:02:17]} 14. dxe4 {[%clk 0:02:28]}  Qxg5+ {[%clk 0:02:17]} 15. Kb1 {[%clk 0:02:29]}  Rab8 {[%clk 0:02:15]} 16. Nf3 {[%clk 0:02:29]}  Qe3 {[%clk 0:02:09]} 17. Qxe3 {[%clk 0:02:25]}  Bxe3 {[%clk 0:02:09]} 18. Bd5 {[%clk 0:02:21]}  Rb4 {[%clk 0:02:07]} 19. b3 {[%clk 0:02:19]}  Bd7 {[%clk 0:02:00]} 20. Rhe1 {[%clk 0:02:18]}  Bf4 {[%clk 0:01:49]} 21. Rd4 {[%clk 0:02:15]}  Rxd4 {[%clk 0:01:46]} 22. Nxd4 {[%clk 0:02:16]}  Bxh2 {[%clk 0:01:46]} 23. Bc4 {[%clk 0:02:15]}  Be5 {[%clk 0:01:44]} 24. Nf3 {[%clk 0:02:14]}  Be6 {[%clk 0:01:44]} 25. Bxa6 {[%clk 0:02:13]}  Bc3 {[%clk 0:01:35]} 26. Re3 {[%clk 0:02:13]}  Ba5 {[%clk 0:01:36]} 27. Nd4 {[%clk 0:02:12]}  Bb6 {[%clk 0:01:33]} 28. Rd3 {[%clk 0:02:12]}  Bd7 {[%clk 0:01:31]} 29. Bb5 {[%clk 0:02:10]}  Bxd4 {[%clk 0:01:22]} 30. Bxd7 {[%clk 0:02:04]}  Bb6 {[%clk 0:01:20]} 31. b4 {[%clk 0:02:04]}  Rd8 {[%clk 0:01:17]} 32. Bc6 {[%clk 0:02:04]}  h5 {[%clk 0:01:15]} 33. a5 {[%clk 0:02:04]}  Ba7 {[%clk 0:01:15]} 34. b5 {[%clk 0:02:03]}  h4 {[%clk 0:01:13]} 35. e5 {[%clk 0:02:01]}  g5 {[%clk 0:00:45]} 36. exd6 {[%clk 0:01:56]}  cxd6 {[%clk 0:00:45]} 37. b6 {[%clk 0:01:54]}  Bb8 {[%clk 0:00:45]} 38. a6 {[%clk 0:01:53]} 1-0


[Site "https://www.chess.com"]